fUST/lending_fUST_20250226
["ID","MTS","AMOUNT","RATE_DAILY","PERIOD"]
[354475570,1740522653474,-500.0,0.00050136,120]
[354475571,1740522653483,-500.0,0.00050136,120]
[354475572,1740522653495,-500.0,0.00050136,120]
[354475573,1740522653504,-500.0,0.00050136,120]
[354475574,1740522653514,-500.0,0.00050136,120]
[354475575,1740522653524,-542.07,0.00050136,120]
[354475576,1740522653533,-550.83867605,0.00050136,120]
[354475577,1740522653543,-1128.73,0.00050136,120]
[354475578,1740522653553,-500.0,0.00050136,120]
[354475579,1740522653562,-500.0,0.00050136,120]
[354475580,1740522653572,-500.0,0.00050136,120]
[354475581,1740522653581,-2304.49,0.00050136,120]
[354475582,1740522653590,-500.0,0.00050136,120]
[354475583,1740522653600,-894.15,0.00050136,120]
[354475584,1740522653609,-500.0,0.00050136,120]
[354475585,1740522653619,-500.0,0.00050136,120]
[354475586,1740522653628,-1178.73,0.00050136,120]
[354475587,1740522653638,-500.0,0.00050136,120]
[354475588,1740522653647,-587.65,0.00050136,120]
[354475589,1740522653657,-500.0,0.00050136,120]
[354475590,1740522653666,-250.0,0.00050136,120]
[354475591,1740522653675,-631.71,0.00050136,120]
[354475592,1740522653685,-5952.41,0.00050136,120]
[354475593,1740522653694,-500.0,0.00050136,120]
[354475594,1740522653704,-500.0,0.00050136,120]
[354475595,1740522653717,-500.0,0.00050136,120]
[354475596,1740522653726,-500.0,0.00050136,120]
[354475597,1740522653736,-500.0,0.00050136,120]
[354475598,1740522653747,-541.29,0.00050136,120]
[354475599,1740522653757,-5514.64,0.00050136,120]
[354475600,1740522653767,-500.0,0.00050136,120]
[354475601,1740522653777,-500.0,0.00050136,120]
[354475602,1740522653787,-1364.33,0.00050136,120]
[354475603,1740522653797,-878.26,0.00050136,120]
[354475604,1740522653806,-500.0,0.00050136,120]
[354475605,1740522653816,-500.0,0.00050136,120]
[354475606,1740522653825,-1767.0,0.00050136,120]
[354475607,1740522653834,-11889.22,0.00050136,120]
[354475608,1740522653844,-9895.02,0.00050136,3]
[354475609,1740522653853,-500.0,0.00050136,120]
[354475610,1740522653863,-500.0,0.00050136,120]
[354475611,1740522653872,-500.0,0.00050136,120]
[354475612,1740522653882,-500.0,0.00050136,120]
[354475613,1740522653892,-2282.38,0.00050136,120]
[354475614,1740522653901,-500.0,0.00050136,120]
[354475615,1740522653911,-500.0,0.00050136,120]
[354475616,1740522653921,-504.92561885,0.00050136,120]
[354475617,1740522653930,-706.96,0.00050136,7]
[354475618,1740522653940,-950.36,0.00050136,120]
[354475619,1740522653949,-500.0,0.00050136,21]
[354475620,1740522653959,-500.0,0.00050136,120]
[354475621,1740522653968,-13557.16,0.00050136,120]
[354475622,1740522653978,-500.0,0.00050136,120]
[354475623,1740522653987,-2769.31,0.00050136,120]
[354475624,1740522653998,-552.1,0.00050136,120]
[354475625,1740522654007,-3277.28,0.00050136,120]
[354475626,1740522654017,-500.0,0.00050136,120]
[354475627,1740522654027,-500.0,0.00050136,120]
[354475628,1740522654037,-2288.32,0.00050136,120]
[354475629,1740522654046,-529.75,0.00050136,30]
[354475630,1740522654056,-500.0,0.00050136,120]
[354475631,1740522654066,-8084.77,0.00050136,120]
[354475632,1740522654077,-500.0,0.00050136,120]
[354475633,1740522654087,-1227.79,0.00050136,120]
[354475634,1740522654098,-5970.22,0.00050136,120]
[354475635,1740522654107,-1312.86,0.00050136,7]
[354475636,1740522654117,-500.0,0.00050136,120]
[354475637,1740522654126,-1559.13,0.00050136,120]
[354475638,1740522654136,-500.0,0.00050136,120]
[354475639,1740522654146,-500.0,0.00050136,120]
[354475640,1740522654155,-13860.0,0.00050136,120]
[354475641,1740522654165,-434.81568704,0.00050136,120]
[354475642,1740522654174,-374.95585863,0.00050136,120]
[354475643,1740522654184,-511.68206066,0.00050136,120]
[354475644,1740522654194,-1915.52,0.00050136,120]
[354475645,1740522654203,-662.45,0.00050136,120]
[354475646,1740522654213,-500.0,0.00050136,120]
[354475647,1740522654223,-2692.41,0.00050136,120]
[354475648,1740522654232,-500.0,0.00050136,120]
[354475649,1740522654243,-4405.19,0.00050136,120]
[354475650,1740522654253,-545.46,0.00050136,120]
[354475651,1740522654262,-28489.09918687,0.00050136,7]
[354475652,1740522655139,-500.0,0.00049315,120]
[354475653,1740522655149,-929.75,0.00049589,120]
[354475654,1740522655158,-382.96975167,0.00049589,120]
[354475655,1740522655167,-256.39718833,0.00049863,120]
[354475656,1740522655451,-673.35281167,0.00049863,120]
[354475657,1740522655460,-2557.24718833,0.00050136,7]
[354475658,1740522655471,-462.33353198,0.00050136,7]
[354475659,1740522655504,-2447.77153542,0.00050136,7]
[354475660,1740522655696,-1802.4249918,0.00050136,7]
[354475661,1740522655710,-951.94,0.00050136,7]
[354475662,1740522655743,-0.30444591,0.00050136,7]
[354475663,1740522655872,-181268.75911969,0.00050136,7]
[354475664,1740522655882,-2052.6,0.00050136,120]
[354475665,1740522655891,-3412.35,0.00050136,120]
[354475666,1740522655900,-542.59,0.00050136,120]
[354475667,1740522655909,-649.38,0.00050136,120]
[354475668,1740522655918,-500.0,0.00050136,120]
[354475669,1740522655927,-1236.53,0.00050136,120]
[354475670,1740522655935,-1318.2,0.00050136,120]
[354475671,1740522655944,-508.40960132,0.00050136,120]
[354475672,1740522655953,-17516.75,0.00050136,120]
[354475673,1740522655962,-1665.23,0.00050136,120]
[354475674,1740522655972,-3658.98,0.00050136,120]
[354475675,1740522655981,-500.0,0.00050136,120]
[354475676,1740522655990,-500.0,0.00050136,120]
[354475677,1740522656000,-711.01,0.00050136,120]
[354475678,1740522656009,-500.0,0.00050136,30]
[354475679,1740522656018,-500.0,0.00050136,120]
[354475680,1740522656027,-500.0,0.00050136,120]
[354475681,1740522656036,-1272.27,0.00050136,120]
[354475682,1740522656045,-1693.35,0.00050136,120]
[354475683,1740522656055,-1095.88,0.00050136,120]
[354475684,1740522656064,-1849.31,0.00050136,120]
[354475685,1740522656073,-725.56,0.00050136,120]
[354475686,1740522656083,-500.0,0.00050136,120]
[354475687,1740522656092,-26800.97,0.00050136,120]
[354475688,1740522656102,-1501.31,0.00050136,120]
[354475689,1740522656111,-500.0,0.00050136,120]
[354475690,1740522656121,-912.86,0.00050136,120]
[354475691,1740522656131,-377.56578151,0.00050136,120]
[354475692,1740522656140,-1439.61,0.00050136,120]
[354475693,1740522656150,-500.0,0.00050136,120]
[354475694,1740522656159,-1192.07,0.00050136,120]
[354475695,1740522656169,-500.0,0.00050136,120]
[354475696,1740522656179,-1294.68,0.00050136,120]
[354475697,1740522656188,-500.0,0.00050136,120]
[354475698,1740522656198,-2083.31,0.00050136,120]
[354475699,1740522656207,-2602.06,0.00050136,120]
[354475700,1740522656216,-5772.7,0.00050136,120]
[354475701,1740522656226,-550.61,0.00050136,120]
[354475702,1740522656235,-912.52,0.00050136,120]
[354475703,1740522656245,-2917.24,0.00050136,120]
[354475704,1740522656255,-5797.79,0.00050136,120]
[354475705,1740522656265,-500.0,0.00050136,120]
[354475706,1740522656274,-500.0,0.00050136,120]
[354475707,1740522656283,-500.0,0.00050136,120]
[354475708,1740522656292,-500.0,0.00050136,120]
[354475709,1740522656302,-751.58,0.00050136,120]
[354475710,1740522656311,-500.0,0.00050136,120]
[354475711,1740522656320,-500.0,0.00050136,30]
[354475712,1740522656330,-500.0,0.00050136,120]
[354475713,1740522656339,-500.0,0.00050136,120]
[354475714,1740522656351,-500.0,0.00050136,120]
[354475715,1740522656366,-1621.2848383,0.00050136,120]
[354475716,1740522656379,-294.5951617,0.00050136,120]
[354475717,1740522656388,-533.82,0.00050136,120]
[354475718,1740522656397,-500.0,0.00050136,120]
[354475719,1740522656407,-6036.2848383,0.00050136,120]
[354475720,1740522656719,-6260.75408385,0.00050136,120]
[354475721,1740522748771,10600.05,0.00028,7]
[354475722,1740523107756,234.010619,0.00013699,2]
[354475766,1740523832864,-500.0,0.00038356,30]
[354475768,1740523832874,-191.704,0.00038793,2]
[354475770,1740523832883,-250.0,0.00038793,2]
[354475772,1740523832892,-971.156,0.00039856,2]
[354475774,1740523832904,-23928.844,0.00039856,2]
[354475776,1740523832913,-150.0,0.00041793,2]
[354475778,1740523832923,-221.172354,0.00042745,2]
[354475780,1740523832932,-2317.4062475,0.0004411,2]
[354475782,1740523832941,-879.62217762,0.00046474,120]
[354475784,1740523832950,-1313.83,0.00046575,120]
[354475786,1740523832959,-739.25,0.00046575,120]
[354475788,1740523832969,-500.0,0.00046575,120]
[354475790,1740523832978,-1098.5,0.00046575,120]
[354475792,1740523832987,-165.46571483,0.00046575,120]
[354475843,1740523838427,-151.682,0.00038793,2]
[354475844,1740523838436,-316.83926167,0.00038793,2]
[354475845,1740523838448,-79.16073833,0.00038793,2]
[354475846,1740523838458,-334.53428517,0.00046575,120]
[354475847,1740523838467,-500.0,0.00046575,120]
[354475848,1740523838477,-671.99,0.00046575,120]
[354475849,1740523838487,-500.0,0.00046575,120]
[354475850,1740523838497,-500.0,0.00046575,120]
[354475851,1740523838506,-78.50477476,0.00046575,120]
[354475852,1740523838518,-566.3043233,0.00046575,120]
[354475853,1740523838529,-948.08090194,0.00046575,120]
[354475854,1740523838539,-500.0,0.00046575,120]
[354475855,1740523838548,-500.0,0.00046575,120]
[354475856,1740523838557,-962.4,0.00046575,120]
[354475857,1740523838566,-500.0,0.00046575,120]
[354475858,1740523838575,-500.0,0.00046575,120]
[354475859,1740523838585,-500.0,0.00046575,120]
[354475860,1740523838594,-500.0,0.00046575,120]
[354475861,1740523838603,-500.0,0.00046575,120]
[354475862,1740523838619,-991.92,0.00046575,120]
[354475863,1740523838629,-507.79,0.00046575,120]
[354475864,1740523838638,-500.0,0.00046575,120]
[354475865,1740523838648,-500.0,0.00046575,120]
[354475866,1740523838659,-500.0,0.00046575,120]
[354475867,1740523838668,-647.41,0.00046575,120]
[354475868,1740523838677,-500.0,0.00046575,120]
[354475869,1740523838687,-500.0,0.00046575,120]
[354475870,1740523838696,-1713.29,0.00046575,120]
[354475871,1740523838705,-818.3,0.00046575,120]
[354475872,1740523838714,-632.24472594,0.00046575,120]
[354475873,1740523838732,-255.66527406,0.00046575,120]
[354475874,1740523838743,-168.12639525,0.00046575,120]
[354475875,1740523838755,-331.87360475,0.00046575,120]
[354475876,1740523838764,-539.83,0.00046575,120]
[354475877,1740523838773,-500.0,0.00046575,120]
[354475878,1740523838782,-500.0,0.00046575,120]
[354475879,1740523838791,-94.73914128,0.00046575,120]
[354475880,1740523839026,-405.26085872,0.00046575,120]
[354475881,1740523839035,-160.30020819,0.0004675,10]
[354475882,1740523839170,-500.0,0.0004675,10]
[354475883,1740523839180,-1313.83,0.00046849,120]
[354475884,1740523839190,-739.25,0.00046849,120]
[354475885,1740523839199,-632.54884502,0.00046849,120]
[354475886,1740523839209,-1098.5,0.00046849,120]
[354475887,1740523839218,-500.0,0.00046849,120]
[354475888,1740523839228,-500.0,0.00046849,120]
[354475889,1740523839237,-671.99,0.00046849,120]
[354475890,1740523839246,-500.0,0.00046849,120]
[354475891,1740523839256,-500.0,0.00046849,120]
[354475892,1740523839266,-1592.89,0.00046849,120]
[354475893,1740523839275,-500.0,0.00046849,120]
[354475894,1740523839285,-500.0,0.00046849,120]
[354475895,1740523839295,-962.4,0.00046849,120]
[354475896,1740523839304,-508.67661957,0.00046849,120]
[354475897,1740523839313,-500.0,0.00046849,120]
[354475898,1740523839322,-213.57300737,0.00046849,120]
[354475899,1740523839331,-500.0,0.00046849,120]
[354475900,1740523839340,-500.0,0.00046849,120]
[354475901,1740523839349,-991.92,0.00046849,120]
[354475902,1740523839358,-507.79,0.00046849,120]
[354475903,1740523839368,-500.0,0.00046849,120]
[354475904,1740523839377,-500.0,0.00046849,120]
[354475905,1740523839386,-500.0,0.00046849,120]
[354475906,1740523839396,-647.41,0.00046849,120]
[354475907,1740523839405,-500.0,0.00046849,120]
[354475908,1740523839415,-500.0,0.00046849,120]
[354475909,1740523839424,-1713.29,0.00046849,120]
[354475910,1740523839433,-818.3,0.00046849,120]
[354475911,1740523839443,-887.91,0.00046849,120]
[354475912,1740523839452,-500.0,0.00046849,120]
[354475913,1740523839462,-539.83,0.00046849,120]
[354475914,1740523839471,-500.0,0.00046849,120]
[354475915,1740523839480,-500.0,0.00046849,120]
[354475916,1740523839489,-500.0,0.00046849,120]
[354475917,1740523839499,-1313.83,0.00047123,120]
[354475918,1740523839508,-739.25,0.00047123,120]
[354475919,1740523839517,-1098.5,0.00047123,120]
[354475920,1740523839527,-500.0,0.00047123,120]
[354475921,1740523839538,-671.99,0.00047123,120]
[354475922,1740523839547,-500.0,0.00047123,120]
[354475923,1740523839557,-500.0,0.00047123,120]
[354475924,1740523839566,-1592.89,0.00047123,120]
[354475925,1740523839576,-500.0,0.00047123,120]
[354475926,1740523839587,-500.0,0.00047123,120]
[354475927,1740523839596,-962.4,0.00047123,120]
[354475928,1740523839605,-500.0,0.00047123,120]
[354475929,1740523839615,-500.0,0.00047123,120]
[354475930,1740523839624,-500.0,0.00047123,120]
[354475931,1740523839633,-991.92,0.00047123,120]
[354475932,1740523839642,-507.79,0.00047123,120]
[354475933,1740523839651,-500.0,0.00047123,120]
[354475934,1740523839661,-500.0,0.00047123,120]
[354475935,1740523839670,-500.0,0.00047123,120]
[354475936,1740523839681,-647.41,0.00047123,120]
[354475937,1740523839690,-500.0,0.00047123,120]
[354475938,1740523839701,-500.0,0.00047123,120]
[354475939,1740523839710,-1713.29,0.00047123,120]
[354475940,1740523839723,-818.3,0.00047123,120]
[354475941,1740523839732,-887.91,0.00047123,120]
[354475942,1740523839742,-500.0,0.00047123,120]
[354475943,1740523839751,-539.83,0.00047123,120]
[354475944,1740523839760,-500.0,0.00047123,120]
[354475945,1740523839769,-515.34982088,0.00047123,120]
[354475946,1740523839778,-500.0,0.00047123,120]
[354475947,1740523839787,-1313.83,0.00047397,120]
[354475948,1740523839796,-739.25,0.00047397,120]
[354475949,1740523839806,-1098.5,0.00047397,120]
[354475950,1740523839815,-500.0,0.00047397,120]
[354475951,1740523839824,-671.99,0.00047397,120]
[354475952,1740523839833,-500.0,0.00047397,120]
[354475953,1740523839842,-500.0,0.00047397,120]
[354475954,1740523839851,-1592.89,0.00047397,120]
[354475955,1740523839860,-500.0,0.00047397,120]
[354475956,1740523839870,-500.0,0.00047397,120]
[354475957,1740523839879,-962.4,0.00047397,120]
[354475958,1740523839890,-500.0,0.00047397,120]
[354475959,1740523839900,-500.0,0.00047397,120]
[354475960,1740523839909,-500.0,0.00047397,120]
[354475961,1740523839918,-991.92,0.00047397,120]
[354475962,1740523839927,-507.79,0.00047397,120]
[354475963,1740523839937,-500.0,0.00047397,120]
[354475964,1740523839946,-500.0,0.00047397,120]
[354475965,1740523839955,-500.0,0.00047397,120]
[354475966,1740523839965,-647.41,0.00047397,120]
[354475967,1740523839975,-500.0,0.00047397,120]
[354475968,1740523839985,-500.0,0.00047397,120]
[354475969,1740523839994,-1713.29,0.00047397,120]
[354475970,1740523840004,-818.3,0.00047397,120]
[354475971,1740523840013,-887.91,0.00047397,120]
[354475972,1740523840023,-500.0,0.00047397,120]
[354475973,1740523840032,-539.83,0.00047397,120]
[354475974,1740523840042,-500.0,0.00047397,120]
[354475975,1740523840051,-500.0,0.00047397,120]
[354475976,1740523840061,-3016.13676581,0.000475,120]
[354475977,1740523840073,-9862.26541269,0.000475,120]
[354475978,1740523840104,-4984.46285297,0.000475,120]
[354475979,1740523840116,-15961.44103735,0.000475,120]
[354476008,1740523840705,-4005.56480026,0.000475,120]
[354476011,1740523840718,-371.44939038,0.000475,120]
[354476626,1740523846640,-500.0,0.00046575,120]
[354476627,1740523846650,-500.0,0.00046575,120]
[354476628,1740523846659,-496.94332854,0.00046849,120]
[354476629,1740523846669,-53677.76392443,0.000475,120]
[354478167,1740525044008,-300.0,0.00029567,2]
[354478170,1740525044018,-1116.813768,0.00029568,2]
[354478466,1740525047033,-9561.1051023,0.00029568,2]
[354478468,1740525047043,-703.69774208,0.000299,60]
[354478470,1740525047053,-30000.0,0.0003,4]
[354478472,1740525047062,-644.8371556,0.0003,4]
[354482033,1740525421908,213.204326,0.00013699,2]
[354482082,1740526232353,-1630.37229891,0.00026,30]
[354482084,1740526232363,-221.1723549,0.00027804,2]
[354482086,1740526232373,-562.95819368,0.00028899,55]
[354482088,1740526232382,-663.74800858,0.00028938,60]
[354482090,1740526232391,-300.0,0.00028999,2]
[354482092,1740526232402,-5100.99785309,0.00029,2]
[354482094,1740526232411,-355.3690173,0.00029038,2]
[354482096,1740526232420,-37494.35196285,0.0003,4]
[354482098,1740526232430,-162.66,0.0003,120]
[354482100,1740526232439,-203.74869701,0.0003,30]
[354482102,1740526232449,-157.10176871,0.00030026,2]
[354482104,1740526232458,-250.0,0.00030126,2]
[354482106,1740526232468,-152.0,0.00030399,2]
[354482108,1740526232478,-420.0,0.00031287,2]
[354482110,1740526232487,-587.0,0.00033755,2]
[354482112,1740526232496,-562.95819364,0.0003391,84]
[354482113,1740526232506,-823.0,0.00036418,2]
[354482115,1740526232515,-396.0,0.00037656,2]
[354482117,1740526232524,-231.0573324,0.00037656,2]
[354482120,1740526232533,-500.0,0.00038356,30]
[354482122,1740526232543,-500.0,0.0003863,32]
[354482124,1740526232552,-253.598,0.00038793,2]
[354482126,1740526232561,-186.0,0.00038793,2]
[354482128,1740526232570,-279.136,0.00038793,2]
[354482130,1740526232580,-500.0,0.00038904,34]
[354482132,1740526232589,-562.95819364,0.0003892,114]
[354482134,1740526232598,-500.0,0.00039178,36]
[354482136,1740526232607,-1152.0,0.00039291,5]
[354482137,1740526232616,-162.66,0.0004,30]
[354482138,1740526232625,-162.66,0.0004,120]
[354482139,1740526232636,-162.66,0.0004,120]
[354482140,1740526232645,-157.10176869,0.00040031,28]
[354482141,1740526232654,-1613.0,0.00042391,5]
[354482142,1740526232664,-562.95819364,0.00043931,120]
[354482143,1740526232673,-1006.15330337,0.00045,2]
[354482145,1740526232683,-492.0,0.00045735,5]
[354482147,1740526232693,-503.42217947,0.00045999,120]
[354482149,1740526232702,-21000.099999,0.00046,120]
[354482151,1740526232711,-162.66,0.00046,30]
[354482153,1740526232721,-162.66,0.00046,30]
[354482155,1740526232730,-173.88163774,0.00046474,2]
[354482157,1740526232739,-173.88163773,0.00046475,2]
[354482159,1740526232748,-173.88163773,0.00046475,2]
[354482161,1740526232758,-4416.75469665,0.00046475,2]
[354482163,1740526232767,-249.07566801,0.000465,120]
[354482165,1740526232777,-203.97,0.00046561,30]
[354482167,1740526232786,-169.98,0.00046561,30]
[354482169,1740526232795,-849.92,0.00046561,30]
[354482171,1740526232804,-352.47,0.00046562,30]
[354482172,1740526232814,-293.72,0.00046562,30]
[354482174,1740526232829,-244.77,0.00046562,30]
[354482177,1740526232838,-286.39979951,0.00046563,4]
[354482179,1740526232848,-1431.99899755,0.00046564,4]
[354482180,1740526232858,-4009.59719314,0.00046565,4]
[354482182,1740526232868,-18636.12,0.00046571,120]
[354482185,1740526232877,-1000.0,0.00046572,120]
[354482186,1740526232886,-502.73561742,0.00046573,7]
[354482188,1740526232896,-500.36053896,0.00046573,10]
[354482190,1740526232907,-500.0,0.00046573,10]
[354482193,1740526232925,-499.0,0.00046573,10]
[354482196,1740526232937,-500.0,0.00046573,7]
[354482198,1740526232947,-500.0,0.00046573,10]
[354482200,1740526232957,-272.66370739,0.00046573,10]
[354482202,1740526232967,-500.0,0.00046573,10]
[354482204,1740526232977,-500.0,0.00046573,7]
[354482206,1740526232987,-500.0,0.00046573,10]
[354482208,1740526232997,-501.12293708,0.00046573,10]
[354482210,1740526233007,-500.93511211,0.00046573,10]
[354482212,1740526233017,-266.26979567,0.00046573,10]
[354482215,1740526233027,-500.0,0.00046573,2]
[354482217,1740526233037,-500.0,0.00046573,7]
[354482218,1740526233047,-500.0,0.00046573,10]
[354482220,1740526233057,-500.0,0.00046573,10]
[354482222,1740526233067,-500.0,0.00046573,10]
[354482224,1740526233077,-500.0,0.00046573,10]
[354482226,1740526233088,-500.0,0.00046573,10]
[354482228,1740526233098,-277.877,0.00046574,77]
[354482231,1740526233109,-110445.51083739,0.00046574,120]
[354482233,1740526233124,-2728.9709,0.00046574,120]
[354482261,1740526233389,-500.0,0.00046572,120]
[354482263,1740526233401,-234.69161504,0.00046572,120]
[354482265,1740526233411,-94649.68678132,0.00046574,120]
[354482267,1740526233421,-500.0,0.00046574,31]
[354482269,1740526233430,-341.54586441,0.00046574,120]
[354482271,1740526233440,-500.0,0.00046574,120]
[354482273,1740526233449,-355.06705811,0.00046574,31]
[354482275,1740526233459,-500.0,0.00046574,120]
[354482277,1740526233468,-500.0,0.00046574,120]
[354482279,1740526233478,-500.0,0.00046574,120]
[354482281,1740526233490,-500.0,0.00046574,120]
[354482283,1740526233499,-500.0,0.00046574,120]
[354482285,1740526233509,-500.0,0.00046574,120]
[354482288,1740526233519,-623.68911894,0.00046574,120]
[354482290,1740526233528,-500.0,0.00046574,120]
[354482292,1740526233537,-300.0,0.00046574,120]
[354482294,1740526233547,-150869.31134789,0.00046575,30]
[354482734,1740526237960,-305.93986116,0.00046572,120]
[354482737,1740526237975,-194.06013884,0.00046572,120]
[354482739,1740526237985,-500.0,0.00046572,120]
[354482741,1740526237996,-500.0,0.00046572,120]
[354482743,1740526238005,-500.0,0.00046572,120]
[354482745,1740526238015,-500.0,0.00046572,120]
[354482747,1740526238024,-500.0,0.00046572,120]
[354482749,1740526238034,-500.0,0.00046572,120]
[354482751,1740526238044,-500.0,0.00046572,120]
[354482753,1740526238054,-500.0,0.00046572,120]
[354482755,1740526238064,-500.0,0.00046572,120]
[354482757,1740526238074,-500.0,0.00046572,120]
[354482759,1740526238083,-500.0,0.00046572,120]
[354482761,1740526238093,-550.0,0.00046572,120]
[354482763,1740526238102,-500.0,0.00046572,120]
[354482765,1740526238112,-500.0,0.00046572,120]
[354482767,1740526238122,-500.0,0.00046572,120]
[354482770,1740526238131,-500.0,0.00046572,120]
[354482772,1740526238141,-500.0,0.00046572,120]
[354482773,1740526238153,-500.0,0.00046572,120]
[354482775,1740526238162,-500.0,0.00046572,120]
[354482778,1740526238172,-500.0,0.00046572,120]
[354482780,1740526238182,-500.0,0.00046572,120]
[354482782,1740526238192,-500.0,0.00046572,120]
[354482784,1740526238201,-500.0,0.00046572,120]
[354482786,1740526238211,-500.0,0.00046572,120]
[354482788,1740526238221,-10.71434023,0.00046572,120]
[354482946,1740526240117,-489.28565977,0.00046572,120]
[354482948,1740526240127,-500.0,0.00046572,120]
[354482950,1740526240137,-500.0,0.00046572,120]
[354482952,1740526240147,-500.0,0.00046572,120]
[354482953,1740526240158,-500.0,0.00046572,120]
[354482956,1740526240168,-500.0,0.00046572,120]
[354482959,1740526240178,-500.0,0.00046572,120]
[354482962,1740526240188,-500.0,0.00046572,120]
[354482964,1740526240197,-500.0,0.00046572,120]
[354482965,1740526240207,-500.0,0.00046572,120]
[354482966,1740526240217,-500.0,0.00046572,120]
[354482967,1740526240227,-500.0,0.00046572,120]
[354482968,1740526240237,-500.0,0.00046572,120]
[354482969,1740526240248,-500.0,0.00046572,120]
[354482970,1740526240258,-500.0,0.00046572,120]
[354482971,1740526240267,-500.0,0.00046572,120]
[354482972,1740526240277,-500.0,0.00046572,120]
[354482973,1740526240287,-500.0,0.00046572,120]
[354482974,1740526240296,-164.3127395,0.00046572,120]
[354482975,1740526240306,-500.0,0.00046572,120]
[354482976,1740526240316,-10020.13766773,0.00046575,30]
[354482978,1740526240328,-169056.98969081,0.00046575,30]
[354482980,1740526240340,-1352.64554896,0.00046575,30]
[354482983,1740526240355,-389.23000006,0.00046575,30]
[354483284,1740526243116,-2500.0,0.00046575,30]
[354483848,1740526251510,10000.0,0.00021,10]
[354484342,1740526272429,488.47,0.00021,10]
[354484344,1740527165585,1205.75627706,0.000189,2]
[354484390,1740527432340,-605.45,0.000239,2]
[354484392,1740527432352,-600.30627706,0.000239,2]
[354484394,1740527432362,-495.38902141,0.000289,2]
[354484401,1740527432412,-710.36725565,0.000289,2]
[354484403,1740527432422,-187.65273122,0.00034237,86]
[354484405,1740527432432,-2000.0,0.00034337,20]
[354484407,1740527432442,-59.18545269,0.00034987,2]
[354484409,1740527432454,-190.18833231,0.00034987,2]
[354484411,1740527432464,-400.0,0.0003526,2]
[354484413,1740527432474,-2000.0,0.00035261,20]
[354484415,1740527432484,-2000.0,0.00036122,30]
[354484417,1740527432494,-2000.0,0.0003721,30]
[354484419,1740527432503,-320.0,0.00037796,2]
[354484421,1740527432513,-202.88895239,0.000379,8]
[354484423,1740527432523,-2000.0,0.00038284,30]
[354484425,1740527432532,-500.0,0.00038356,30]
[354484427,1740527432542,-500.0,0.0003863,32]
[354484429,1740527432551,-202.88895223,0.00040285,8]
[354484431,1740527432561,-21267.1051061,0.00040573,2]
[354484433,1740527432577,-3632.8948939,0.00040573,2]
[354484435,1740527432586,-2000.0,0.00040775,60]
[354484437,1740527432596,-187.65273121,0.00041726,120]
[354484439,1740527432605,-202.88895223,0.00042669,9]
[354484440,1740527432616,-2000.0,0.0004386,60]
[354484441,1740527432625,-186.0,0.00045,90]
[354484442,1740527432634,-202.88895223,0.00045054,10]
[354484443,1740527432644,-9892.38509838,0.000455,120]
[354484446,1740527432656,-72596.68335106,0.000455,120]
[354484448,1740527432668,-310580.51130452,0.000455,120]
[354484491,1740527438217,-1145.37597596,0.000455,120]
[354484492,1740527438229,-28655.42540309,0.000455,120]
[354484494,1740527438241,-173440.43025624,0.000455,120]